[Event "Vienna Championship-B 2022"]
[Site "Vienna"]
[Date "2022.09.23"]
[Round "7.11"]
[White "Mayrhuber, Franz"]
[Black "Reif, Werner"]
[Result "0-1"]
[ECO "D52"]
[WhiteElo "1718"]
[BlackElo "1747"]
[Annotator "NA RC COMBH"]
[PlyCount "108"]
[EventDate "2022.09.17"]
[EventType "swiss"]
[EventCountry "AUT"]
[SourceTitle "playchess.com"]
[Source "ChessBase"]
[SourceQuality "1"]
[TimeControl "5400+30"]

1. d4 {[%emt 0:00:38]} d5 {[%emt 0:00:18]} 2. Nf3 {[%emt 0:00:13]} Nf6 {[%emt 0:00:08]} 3. c4 {[%emt 0:00:05]} e6 {[%emt 0:00:04]} 4. Nc3 {[%emt 0:00:05]} c6 {[%emt 0:00:06]} 5. Bg5 {[%emt 0:00:08]} Nbd7 {[%emt 0:00:12]} 6. e3 {[%emt 0:00:05]} Qa5 {[%emt 0:00:47]} 7. Bd3 {[%emt 0:01:16]} Ne4 {[%emt 0:05:03]} 8. Qa4 {[%emt 0:01:33]} Qxa4 {[%emt 0:01:35]} 9. Nxa4 {[%emt 0:00:03]} Bb4+ {[%emt 0:00:08]} 10. Ke2 {[%emt 0:00:24]} Nxg5 {[%emt 0:00:15]} 11. Nxg5 {[%emt 0:00:26]} h6 {[%emt 0:00:58]} 12. a3 {[%emt 0:01:34]} Be7 {[%emt 0:00:17]} 13. Nf3 {[%emt 0:00:18]} dxc4 {[%emt 0:00:09]} 14. Bb1 {[%emt 0:01:11]} b5 {[%emt 0:00:09]} 15. Nc3 {[%emt 0:00:07]} O-O {[%emt 0:00:28]} 16. Rc1 {[%emt 0:00:48]} Bb7 {[%emt 0:01:01]} 17. Be4 {[%emt 0:00:57]} Nf6 {[%emt 0:00:19]} 18. Bc2 {[%emt 0:01:20]} a5 {[%emt 0:02:06]} 19. Ne4 {[%emt 0:01:59]} Nd5 {[%emt 0:03:13]} 20. Nfd2 {[%emt 0:02:48]} Ba6 {[%emt 0:06:24]} 21. Ke1 {[%emt 0:00:50]} f5 {[%emt 0:06:35]} 22. Nc3 {[%emt 0:01:43]} Nxc3 {[%emt 0:03:45]} 23. bxc3 {[%emt 0:00:07]} c5 {[%emt 0:00:03]} 24. Nf3 {[%emt 0:03:29]} b4 {[%emt 0:02:19]} 25. axb4 {[%emt 0:03:42]} axb4 {[%emt 0:00:56]} 26. Bd1 {[%emt 0:07:06]} b3 {[%emt 0:00:56]} 27. Ra5 {[%emt 0:01:56]} Bb7 {[%emt 0:01:14]} 28. Rb5 {[%emt 0:03:54]} Be4 {[%emt 0:03:04]} 29. Ne5 {[%emt 0:04:48]} Rfb8 {[%emt 0:01:04]} 30. Rxb8+ {[%emt 0:04:56]} Rxb8 {[%emt 0:00:06]} 31. Nxc4 {[%emt 0:04:21]} b2 {[%emt 0:00:41]} 32. Nxb2 {[%emt 0:00:45]} Rxb2 {[%emt 0:00:07]} 33. f3 {[%emt 0:00:06]} Rb1 {[%emt 0:00:23]} 34. Rxb1 {[%emt 0:02:08]} Bxb1 {[%emt 0:00:06]} 35. Kd2 {[%emt 0:00:15]} c4 {[%emt 0:01:48]} 36. Be2 {[%emt 0:00:58]} Ba2 {[%emt 0:00:13]} 37. e4 {[%emt 0:00:20]} f4 {[%emt 0:01:33]} 38. g4 {[%emt 0:02:29]} Kf7 {[%emt 0:04:38]} 39. Kc1 {[%emt 0:02:50]} Ba3+ {[%emt 0:01:02]} 40. Kd2 {[%emt 0:00:05]} Ke7 {[%emt 0:04:01]} 41. Bd1 {[%emt 0:01:15]} e5 {[%emt 0:02:06]} 42. d5 {[%emt 0:00:23]} Kf6 {[%emt 0:00:11]} 43. h4 {[%emt 0:00:56]} Kf7 {[%emt 0:00:37]} 44. Ba4 {[%emt 0:00:41]} Ke7 {[%emt 0:01:35]} 45. Bb5 {[%emt 0:03:30]} Kd6 {[%emt 0:00:16]} 46. Ba4 {[%emt 0:00:10]} Kc5 {[%emt 0:00:13]} 47. Be8 {[%emt 0:00:28]} Bb3 {[%emt 0:00:18]} 48. Bd7 {[%emt 0:00:19]} Kb6 {[%emt 0:51:00]} 49. Be8 {[%emt 0:44:32]} Be7 {[%emt 0:00:00]} 50. h5 {[%emt 0:00:00]} Ba3 {[%emt 0:00:00]} 51. Bd7 {[%emt 0:00:00]} Kc7 {[%emt 0:00:00]} 52. Be8 {[%emt 0:00:00]} Kd6 {[%emt 0:00:00]} 53. Ke2 {[%emt 0:00:00]} Ke7 {[%emt 0:00:00]} 54. Bb5 {[%emt 0:00:00]} Kf6 {[%emt 0:03:00]} 0-1

[Event "Vienna Championship-B 2022"]
[Site "Vienna"]
[Date "2022.09.23"]
[Round "7.12"]
[White "Marinovic, Sara"]
[Black "Kunschek, Horst"]
[Result "1-0"]
[ECO "C45"]
[WhiteElo "1384"]
[BlackElo "1743"]
[Annotator "NA RC COMBH"]
[PlyCount "57"]
[EventDate "2022.09.17"]
[EventType "swiss"]
[EventCountry "AUT"]
[SourceTitle "playchess.com"]
[Source "ChessBase"]
[SourceQuality "1"]
[TimeControl "5400+30"]

1. e4 {[%emt 0:00:30]} e5 {[%emt 0:00:09]} 2. Nf3 {[%emt 0:00:23]} Nc6 {[%emt 0:00:10]} 3. d4 {[%emt 0:00:06]} exd4 {[%emt 0:00:08]} 4. Nxd4 {[%emt 0:00:07]} d5 {[%emt 0:00:10]} 5. Bb5 {[%emt 0:08:01]} Nge7 {[%emt 0:00:10]} 6. exd5 {[%emt 0:16:33]} Qxd5 {[%emt 0:00:27]} 7. Nc3 {[%emt 0:00:48]} Qxg2 {[%emt 0:02:00]} 8. Qf3 {[%emt 0:06:24]} Qxf3 {[%emt 0:00:16]} 9. Nxf3 {[%emt 0:00:05]} Bd7 {[%emt 0:00:13]} 10. Bf4 {[%emt 0:04:46]} O-O-O {[%emt 0:00:16]} 11. Ng5 {[%emt 0:04:00]} Be8 {[%emt 0:00:56]} 12. Bc4 {[%emt 0:11:39]} h6 {[%emt 0:00:34]} 13. Nxf7 {[%emt 0:04:53]} Bxf7 {[%emt 0:00:16]} 14. Bxf7 {[%emt 0:00:36]} g5 {[%emt 0:00:32]} 15. Bg3 {[%emt 0:02:34]} a6 {[%emt 0:00:29]} 16. O-O {[%emt 0:03:33]} Bg7 {[%emt 0:00:16]} 17. Rfe1 {[%emt 0:08:25]} h5 {[%emt 0:00:32]} 18. h4 {[%emt 0:01:43]} Rdf8 {[%emt 0:00:48]} 19. Be6+ {[%emt 0:02:36]} Kb8 {[%emt 0:00:02]} 20. Nd5 {[%emt 0:03:46]} Nxd5 {[%emt 0:00:36]} 21. Bxd5 {[%emt 0:00:07]} gxh4 {[%emt 0:00:22]} 22. Bxh4 {[%emt 0:00:37]} Ne5 {[%emt 0:02:15]} 23. Bg3 {[%emt 0:03:35]} Ng4 {[%emt 0:00:40]} 24. Re7 {[%emt 0:01:40]} Bxb2 {[%emt 0:00:52]} 25. Rb1 {[%emt 0:00:44]} Bd4 {[%emt 0:01:32]} 26. Rxb7+ {[%emt 0:01:55]} Ka8 {[%emt 0:00:10]} 27. Rbxc7+ {[%emt 0:00:55]} Kb8 {[%emt 0:00:06]} 28. Ra7+ {[%emt 0:01:07]} Kc8 {[%emt 0:00:08]} 29. Ra8# {[%emt 0:00:40]} 1-0

[Event "Vienna Championship-B 2022"]
[Site "Vienna"]
[Date "2022.09.25"]
[Round "9.1"]
[White "Pavlov, Alexander"]
[Black "Wagner, Leopold Franziskus"]
[Result "1/2-1/2"]
[ECO "B15"]
[WhiteElo "1751"]
[BlackElo "2201"]
[Annotator "TA"]
[PlyCount "138"]
[EventDate "2022.09.17"]
[EventType "swiss"]
[EventCountry "AUT"]
[SourceTitle "playchess.com"]
[Source "ChessBase"]
[SourceQuality "1"]
[TimeControl "5400+30"]

{[%evp 10,138,31,29,36,-12,0,0,0,0,0,0,38,0,-8,-31,8,-16,-10,-77,-78,-81,-66,-71,-70,-101,-109,-97,-62,-57,-62,-56,-66,-184,-206,-190,-99,-106,-108,-132,-129,-135,-60,-82,0,0,0,0,0,-14,0,-112,-108,-111,-111,-111,-97,-103,-102,-101,-101,-110,-85,-85,-85,-108,-85,-95,-87,-104,-90,-91,-84,-97,-83,-86,-71,-79,-73,-98,-64,-105,-112,-105,-79,-111,-9,-9,-9,-12,-10,-112,-112,-124,0,0,0,0,0,0,0,0,0,0,0,-8,0,0,0,0,0,0,0,0,0,0,0,0,0,0,0,0,0,0,0,0,0,0,0,0,0]} 1. e4 {[%emt 0:00:01]} c6 {[%emt 0:00:03]} 2. d4 {[%emt 0:00:07]} d5 {[%emt 0:00:02]} 3. Nc3 {[%emt 0:00:04]} g6 {[%emt 0:00:03]} 4. Nf3 {[%emt 0:00:49]} Bg7 {[%emt 0:00:04]} 5. h3 {[%emt 0:01:06]} dxe4 {[%emt 0:00:51]} 6. Nxe4 {[%emt 0:00:06]} Nf6 $1 {[%emt 0:00:03][%mdl 4] is now more promising than 6...Nd7. B15: Caro-Kann: 3 Nc3: 3...g6 and 3...dxe4 4 Nxe4 Nf6 5 Nxf6+ exf6.} 7. Ng3 {[%emt 0:00:24]} (7. Nxf6+ $14 {is superior.} exf6 8. Bd3) 7... Nbd7 {[%emt 0:01:52]} 8. Bc4 {[%emt 0:01:45]} e6 {[%emt 0:00:25]} 9. O-O {[%emt 0:01:15]} O-O {[%emt 0:00:19] [#]} 10. Bf4 $146 {[%emt 0:01:26]} ({Predecessor:} 10. c3 Qc7 11. Qe2 Nb6 12. Bb3 a5 13. Ne5 Nbd5 14. c4 Ne7 15. Bf4 Qb6 16. Nf3 a4 17. Bc2 {1-0 (38) Jurakic,L (2023)-Sucikova,S (2171) Skalica 2020}) 10... Nd5 {[%emt 0:01:38]} 11. Bd2 {[%emt 0:04:39]} (11. Bg5 $14 Qc7 12. Qd2) 11... b5 $11 {[%emt 0:02:17]} 12. Bb3 {[%emt 0:00:42]} Qb6 {[%emt 0:00:53]} 13. c3 {[%emt 0:02:00]} Bb7 {[%emt 0:00:10]} 14. Ne2 {[%emt 0:02:50]} (14. a4 $11 {remains equal.}) 14... c5 $17 {[%emt 0:01:50]} 15. Nf4 {[%emt 0:10:39]} Nxf4 {[%emt 0:09:53]} (15... cxd4 $6 16. Nxd5 Bxd5 17. Bxd5 exd5 18. Nxd4 $11) (15... Ne7 {looks sharper.} 16. Ng5 e5 17. Nfe6 Qc6) 16. Bxf4 {[%emt 0:00:12]} Rad8 {[%emt 0:02:51][%cal Oe6e5]} 17. dxc5 {[%emt 0:07:38]} Nxc5 {[%emt 0:00:22]} 18. Qe2 {[%emt 0:00:07]} a5 {[%emt 0:12:31]} 19. Bc2 {[%emt 0:05:12]} b4 {[%emt 0:01:06]} 20. Be3 {[%emt 0:08:07]} Qc6 {[%emt 0:04:34]} 21. cxb4 {[%emt 0:16:09]} (21. Qc4 $15 Ne4 22. Qxc6 Bxc6 23. cxb4) 21... Ba6 $19 {[%emt 0:01:38]} ({Weaker is} 21... axb4 22. Qc4 Ne4 23. Qb3 $15) 22. Qe1 {[%emt 0:02:01]} Nd3 {[%emt 0:04:10]} ({Not} 22... Bxf1 23. Bxc5 Ba6 24. Be4 $11) (22... axb4 $19 23. Qxb4 Bxf1 24. Rxf1 (24. Bxc5 $2 Rb8 $19) 24... Nd3 25. Bxd3 Rxd3) 23. Qb1 $17 {[%emt 0:01:23]} Nxb4 {[%emt 0:01:55]} 24. Rc1 {[%emt 0:00:39][%cal Oc2g6]} Qb5 {[%emt 0:04:52]} 25. Bb3 {[%emt 0:05:53]} Qe2 {[%emt 0:01:08]} ({Black should play} 25... Nd3 $17 26. Rc2 Rc8) 26. Bc5 {[%emt 0:02:18]} Rfe8 {[%emt 0:15:57]} (26... Bxb2 $2 27. Re1 Qb5 28. Bxf8 Bxa1 29. Be7 $18) (26... Qxb2 $17 {aiming for ...Rfe8.} 27. Bxf8 Rxf8 28. Qxb2 Bxb2) 27. Ba4 $11 {[%emt 0:00:46]} Qxb2 {[%emt 0:06:27]} 28. Bxe8 {[%emt 0:26:12]} Rxe8 {[%emt 0:09:02]} 29. Bxb4 {[%emt 0:00:00]} (29. Qe4 $5 {[%cal Rc5d4]}) 29... axb4 {[%emt 0:00:31]} 30. Re1 {[%emt 0:00:00]} (30. Qe4 $11 {was the only way to keep the balance.}) 30... Qxa1 $17 {[%emt 0:00:48]} (30... Bc4 {with more complications.} 31. Qe4 Bxa2 32. Rad1 Bc3) 31. Qxa1 {[%emt 0:00:00]} Bxa1 {[%emt 0:00:01]} 32. Rxa1 {[%emt 0:00:00][%mdl 4096] Endgame KRB-KRN} Bd3 {[%emt 0:04:50]} 33. Ne5 {[%emt 0:00:00] [#]} Be4 {[%emt 0:00:04]} 34. f3 {[%emt 0:00:00]} Bd5 {[%emt 0:00:38]} 35. Rb1 {[%emt 0:00:00]} Bxa2 {[%emt 0:01:08]} 36. Rxb4 {[%emt 0:00:00]} Bd5 {[%emt 0:00:09] Against Rb7} 37. Ra4 {[%emt 0:00:00]} Re7 {[%emt 0:00:53] Prevents Ra7.} 38. Kf2 {[%emt 0:00:00]} Kg7 {[%emt 0:00:21]} 39. Ng4 {[%emt 0:00:00]} Bc6 {[%emt 0:02:04]} 40. Rc4 {[%emt 0:00:00]} Be8 {[%emt 0:01:34]} 41. Rb4 {[%emt 0:00:00]} f6 {[%emt 0:00:30]} 42. Rb6 {[%emt 0:00:00]} Bf7 {[%emt 0:00:15]} 43. Kg3 {[%emt 0:07:30]} Ra7 {[%emt 0:00:17]} 44. Rc6 {[%emt 0:00:00]} Ra4 {[%emt 0:00:44]} 45. Rc7 {[%emt 0:00:00][%cal Og4h6]} h5 {[%emt 0:00:35][%cal Bh7h5,Bh5h4][%mdl 32]} 46. Nf2 {[%emt 0:00:00]} h4+ {[%emt 0:05:05]} 47. Kh2 {[%emt 0:00:00]} f5 {[%emt 0:00:16] Inhibits Ne4.} (47... e5 $17 48. Ne4 Ra6) 48. Nd3 $11 {[%emt 0:00:00]} Kf6 {[%emt 0:01:07] Against Ne5. With the idea ...Ra3.} 49. Nc5 {[%emt 0:03:00]} Ra8 {[%emt 0:04:06]} 50. f4 {[%emt 0:00:00]} (50. Nd7+ $11 Kg5 51. Rc4) 50... Be8 $17 {[%emt 0:00:41]} 51. Rh7 {[%emt 0:00:00]} e5 {[%emt 0:01:17]} ({Better is} 51... Ra2 $17 {...Bc6 is the strong threat.} 52. Nd3 Bc6) 52. fxe5+ $11 {[%emt 0:00:00] The position is equal.} Kxe5 {[%emt 0:00:01]} 53. Rxh4 {[%emt 0:00:00]} Bc6 {[%emt 0:00:26]} 54. Nd3+ {[%emt 0:00:00]} Kf6 {[%emt 0:00:25]} 55. Rd4 {[%emt 0:00:00] [#] Hoping for Rd6+.} Be4 {[%emt 0:00:28]} 56. Nc5 {[%emt 0:00:00]} Ke5 {[%emt 0:00:16]} 57. Ra4 {[%emt 0:00:00]} Rc8 {[%emt 0:01:18]} 58. Ra5 {[%emt 0:00:00]} Bd5 {[%emt 0:00:58]} 59. Nd7+ {[%emt 0:00:00]} Ke6 {[%emt 0:00:34]} 60. Rxd5 {[%emt 0:00:00] Black must now prevent Nb6. KRN-KR} Rd8 $1 {[%emt 0:01:14]} 61. Rd1 {[%emt 0:00:00] White wants to mate with Nc5+.} Rxd7 {[%emt 0:00:00]} 62. Rxd7 {[%emt 0:00:00]} Kxd7 {[%emt 0:00:00] KPP-KPP} 63. Kg3 {[%emt 0:00:00]} g5 {[%emt 0:00:00]} 64. h4 {[%emt 0:00:00]} gxh4+ {[%emt 0:00:00]} 65. Kxh4 {[%emt 0:00:00]} Ke6 {[%emt 0:00:00]} 66. Kg5 {[%emt 0:00:00]} Ke5 {[%emt 0:00:00]} 67. g3 {[%emt 0:00:00]} Ke4 {[%emt 0:00:00]} 68. Kf6 {[%emt 0:00:00]} Kf3 {[%emt 0:00:00]} 69. Kxf5 {[%emt 0:00:00] Threatening mate with g4.} Kxg3 {[%emt 0:00:00] Whites escaped into a draw.  Weighted Error Value: White=0.18 (very precise) /Black=0.18 (very precise)} 1/2-1/2

[Event "Vienna Championship-B 2022"]
[Site "Vienna"]
[Date "2022.09.25"]
[Round "9.2"]
[White "Andresen, Erik"]
[Black "Kummer, Helmut"]
[Result "0-1"]
[ECO "B06"]
[WhiteElo "1879"]
[BlackElo "2203"]
[Annotator "TA"]
[PlyCount "94"]
[EventDate "2022.09.17"]
[EventType "swiss"]
[EventCountry "AUT"]
[SourceTitle "playchess.com"]
[Source "ChessBase"]
[SourceQuality "1"]
[TimeControl "5400+30"]

{[%evp 10,94,63,54,60,63,60,51,48,56,56,56,57,32,35,33,90,88,95,66,57,-15,-14,-27,-16,-23,0,-35,0,-12,0,-22,-23,-21,-14,-52,-27,-36,-16,-85,-82,-89,-66,-143,-89,-118,-123,-118,-100,-109,-116,-147,-120,-127,-133,-169,-179,-199,-185,-181,-177,-266,-264,-270,-267,-247,-260,-264,-266,-291,-293,-287,-259,-284,-270,-588,-587,-573,-564,-530,-506,-597,-586,-749,-673,-5422,-806]} 1. e4 {[%emt 0:00:04]} g6 {[%emt 0:00:06]} 2. Nf3 {[%emt 0:01:28]} Bg7 {[%emt 0:00:09]} 3. d4 {[%emt 0:00:04]} c6 {[%emt 0:00:17]} 4. Bd3 {[%emt 0:00:11]} d5 {[%emt 0:00:49]} 5. e5 {[%emt 0:00:05]} Bg4 {[%emt 0:07:33]} 6. Nbd2 {[%emt 0:00:16]} c5 {[%emt 0:07:25] B06: Modern Defence.} 7. c3 {[%emt 0:04:27]} Nc6 {[%emt 0:00:52]} 8. h3 {[%emt 0:03:51]} Bxf3 {[%emt 0:00:51] White is slightly better.} 9. Nxf3 {[%emt 0:00:05]} e6 {[%emt 0:01:34]} 10. O-O {[%emt 0:05:55]} Nge7 {[%emt 0:06:39]} 11. Re1 {[%emt 0:18:31]} cxd4 $1 {[%emt 0:02:34]} 12. cxd4 {[%emt 0:01:25] [#]} (12. Nxd4 Nxe5 13. Bb5+ N5c6 $15) 12... Nf5 $146 {[%emt 0:10:56]} (12... O-O $14) ({Predecessor:} 12... Qb6 13. Qa4 O-O 14. a3 Na5 15. b4 Nc4 16. Qb3 Rac8 17. Be3 Nc6 18. Rab1 Qd8 {0-1 (35) Fox,A (2115)-Wolferink,F (2097) Bunratty 2011}) 13. Bxf5 $16 {[%emt 0:11:21]} gxf5 {[%emt 0:00:06]} 14. Qb3 {[%emt 0:01:00]} Qb6 {[%emt 0:00:40]} 15. Qxb6 {[%emt 0:04:13]} (15. Qe3 $14) 15... axb6 $11 {[%emt 0:00:05]} 16. Bd2 {[%emt 0:00:14] Prevents Nb4.} Bf8 {[%emt 0:01:38]} 17. Rec1 {[%emt 0:01:48]} Be7 {[%emt 0:00:46]} 18. Kf1 {[%emt 0:08:17]} Rg8 {[%emt 0:03:14]} 19. a3 {[%emt 0:05:13]} Kd7 {[%emt 0:00:46]} 20. g3 {[%emt 0:02:05]} Ra4 {[%emt 0:04:53]} 21. Be3 {[%emt 0:04:35]} b5 {[%emt 0:11:55]} 22. Ke2 {[%emt 0:02:37]} Rga8 {[%emt 0:00:11]} 23. Rab1 {[%emt 0:01:57]} b4 {[%emt 0:05:02]} 24. Bd2 {[%emt 0:01:47]} (24. g4 $1 $11 {remains equal.}) 24... bxa3 $17 {[%emt 0:04:55] Black converts the advantage convincingly.} 25. bxa3 {[%emt 0:00:20]} R8a7 {[%emt 0:05:04]} 26. Bb4 {[%emt 0:01:44]} (26. g4 $15) 26... h6 {[%emt 0:05:00]} ({And not} 26... Nxb4 27. axb4 b5 28. Rc2 $17) (26... Bxb4 $142 27. axb4 Nxb4) 27. Bd2 {[%emt 0:10:29]} Bxa3 {[%emt 0:00:51]} ({But not} 27... Nxd4+ 28. Nxd4 Rxd4 29. Be3 $11) 28. Rc2 {[%emt 0:02:05]} Bf8 {[%emt 0:05:05]} (28... Nxd4+ $6 29. Nxd4 Rxd4 30. Be3 $11) 29. Rcb2 {[%emt 0:00:31]} Kc7 {[%emt 0:00:40]} ({Of course not} 29... Nxd4+ $6 30. Nxd4 Rxd4 31. Rxb7+ Rxb7 32. Rxb7+ Kc6 33. Rxf7 $11) 30. Kd3 {[%emt 0:00:19]} Ra3+ {[%emt 0:00:41]} 31. Bc3 {[%emt 0:00:49]} Ra2 {[%emt 0:00:30]} 32. Nd2 {[%emt 0:01:06]} Rxb2 {[%emt 0:00:25]} 33. Rxb2 {[%emt 0:00:09]} Ra3 {[%emt 0:01:40] [#] Hoping for ...Nb4+.} 34. Kc2 {[%emt 0:00:17]} Ra4 {[%emt 0:01:35]} 35. Nb3 {[%emt 0:00:43]} (35. Nf3 $142) 35... Bb4 $19 {[%emt 0:06:05]} 36. f3 {[%emt 0:01:20]} Bxc3 {[%emt 0:00:20]} 37. Kxc3 {[%emt 0:00:02][%mdl 4096] Endgame KRN-KRN} Rc4+ {[%emt 0:00:18]} 38. Kd3 {[%emt 0:00:17]} b6 {[%emt 0:02:39]} 39. g4 {[%emt 0:00:33]} f4 {[%emt 0:01:09]} 40. h4 {[%emt 0:00:45]} Kd7 {[%emt 0:00:47]} 41. h5 {[%emt 0:02:23]} Ke7 {[%emt 0:00:13]} 42. Nd2 $2 {[%emt 0:02:08]} (42. Kd2 {is tougher.}) 42... Rxd4+ {[%emt 0:01:06] Black is clearly winning.} 43. Kc3 {[%emt 0:00:21]} Ra4 {[%emt 0:00:32]} 44. Rxb6 {[%emt 0:00:13]} Nxe5 {[%emt 0:00:04]} 45. Rb8 {[%emt 0:00:59]} Kf6 {[%emt 0:00:13]} 46. Rg8 {[%emt 0:00:13][%cal Og4g5] [#]} Nxf3 {[%emt 0:00:35][%mdl 512]} 47. Kb2 {[%emt 0:02:12]} (47. Nxf3 Ra3+) 47... Ng5 {[%emt 0:00:41] Weighted Error Value: White=0.49/Black=0.10 (very precise)} 0-1

[Event "Vienna Championship-B 2022"]
[Site "Vienna"]
[Date "2022.09.25"]
[Round "9.4"]
[White "Wickramasinghe, Nathaniel"]
[Black "Deak-Sala, Emilia"]
[Result "1-0"]
[ECO "B34"]
[WhiteElo "1760"]
[BlackElo "1787"]
[Annotator "NA RC COMBH"]
[PlyCount "83"]
[EventDate "2022.09.17"]
[EventType "swiss"]
[EventCountry "AUT"]
[SourceTitle "playchess.com"]
[Source "ChessBase"]
[SourceQuality "1"]
[TimeControl "5400+30"]

1. e4 {[%emt 0:00:01]} c5 {[%emt 0:00:01]} 2. Nf3 {[%emt 0:00:05]} Nc6 {[%emt 0:00:02]} 3. d4 {[%emt 0:00:05]} cxd4 {[%emt 0:00:03]} 4. Nxd4 {[%emt 0:00:06]} Nf6 {[%emt 0:00:03]} 5. Nc3 {[%emt 0:00:06]} g6 {[%emt 0:00:03]} 6. Be3 {[%emt 0:00:07]} Bg7 {[%emt 0:00:21]} 7. Be2 {[%emt 0:00:19]} O-O {[%emt 0:00:04]} 8. O-O {[%emt 0:00:41]} d5 {[%emt 0:00:03]} 9. exd5 {[%emt 0:00:48]} Nb4 {[%emt 0:00:05]} 10. d6 {[%emt 0:08:29]} Qxd6 {[%emt 0:00:06]} 11. Ncb5 {[%emt 0:00:18]} Qd7 {[%emt 0:00:18]} 12. Qd2 {[%emt 0:00:23]} Nbd5 {[%emt 0:04:56]} 13. Rad1 {[%emt 0:04:42]} Nxe3 {[%emt 0:10:50]} 14. Qxe3 {[%emt 0:00:24]} a6 {[%emt 0:04:19]} 15. Nf3 {[%emt 0:01:27]} Ng4 {[%emt 0:06:35]} 16. Qf4 {[%emt 0:14:57]} e5 {[%emt 0:09:09]} 17. Qb4 {[%emt 0:11:50]} Qf5 {[%emt 0:10:51]} 18. Nd6 {[%emt 0:00:55]} Qxc2 {[%emt 0:05:47]} 19. Nxc8 {[%emt 0:01:33]} Qxc8 {[%emt 0:01:46]} 20. Rc1 {[%emt 0:00:33]} a5 {[%emt 0:08:26]} 21. Qa4 {[%emt 0:00:50]} b5 {[%emt 0:03:15]} 22. Bxb5 {[%emt 0:00:06]} Qb8 {[%emt 0:04:03]} 23. Bc6 {[%emt 0:00:09]} e4 {[%emt 0:01:25]} 24. Bxa8 {[%emt 0:00:23]} Qxa8 {[%emt 0:00:18]} 25. Ng5 {[%emt 0:00:13]} Qb8 {[%emt 0:25:45]} 26. g3 {[%emt 0:00:14]} Qe5 {[%emt 0:03:08]} 27. h4 {[%emt 0:03:37]} Bh6 {[%emt 0:01:19]} 28. Qxe4 {[%emt 0:01:04]} Qxe4 {[%emt 0:00:28]} 29. Nxe4 {[%emt 0:00:14]} Bxc1 {[%emt 0:00:14]} 30. Rxc1 {[%emt 0:00:05]} Rb8 {[%emt 0:00:53]} 31. b3 {[%emt 0:00:30]} Rb4 {[%emt 0:00:38]} 32. Rc4 {[%emt 0:02:50]} Rb6 {[%emt 0:00:37]} 33. Rc5 {[%emt 0:02:18]} f5 {[%emt 0:00:35]} 34. Nc3 {[%emt 0:00:44]} Ra6 {[%emt 0:00:22]} 35. Nd5 {[%emt 0:01:34]} Ra7 {[%emt 0:00:35]} 36. Rc8+ {[%emt 0:00:23]} Kf7 {[%emt 0:00:16]} 37. Rc7+ {[%emt 0:01:16]} Rxc7 {[%emt 0:00:01]} 38. Nxc7 {[%emt 0:00:06]} Ne5 {[%emt 0:00:36]} 39. a3 {[%emt 0:01:43]} Ke7 {[%emt 0:01:05]} 40. Nd5+ {[%emt 0:00:16]} Ke6 {[%emt 0:00:29]} 41. Ne3 {[%emt 0:00:29]} Kd6 {[%emt 0:00:32]} 42. Kg2 {[%emt 0:01:09]} 1-0

[Event "Vienna Championship-B 2022"]
[Site "Vienna"]
[Date "2022.09.25"]
[Round "9.5"]
[White "Obenaus, Paul"]
[Black "Stinner, David"]
[Result "0-1"]
[ECO "D46"]
[WhiteElo "1825"]
[BlackElo "1823"]
[Annotator "NA RC COMBH"]
[PlyCount "74"]
[EventDate "2022.09.17"]
[EventType "swiss"]
[EventCountry "AUT"]
[SourceTitle "playchess.com"]
[Source "ChessBase"]
[SourceQuality "1"]
[TimeControl "5400+30"]

1. d4 {[%emt 0:00:03]} d5 {[%emt 1:31:00]} 2. c4 {[%emt 0:00:03]} c6 {[%emt 0:00:00]} 3. Nf3 {[%emt 0:00:11]} Nf6 {[%emt 0:00:00]} 4. Nc3 {[%emt 0:00:14]} e6 {[%emt 0:00:00]} 5. e3 {[%emt 0:00:04]} Nbd7 {[%emt 0:00:00]} 6. Bd3 {[%emt 0:00:05]} dxc4 {[%emt 0:00:00]} 7. Bxc4 {[%emt 0:00:04]} b5 {[%emt 0:00:00]} 8. Bd3 {[%emt 0:00:04]} Bd6 {[%emt 0:00:00]} 9. O-O {[%emt 0:00:05]} O-O {[%emt 0:00:00]} 10. e4 {[%emt 0:00:03]} e5 {[%emt 0:00:00]} 11. Ne2 {[%emt 0:00:11]} Bb7 {[%emt 0:00:00]} 12. Bg5 {[%emt 0:00:07]} Re8 {[%emt 0:00:00]} 13. Qc2 {[%emt 0:02:23]} Rc8 {[%emt 0:00:00]} 14. Nh4 {[%emt 0:05:40]} h6 {[%emt 0:00:00]} 15. Nf5 {[%emt 0:00:43]} Bf8 {[%emt 0:00:00]} 16. Bxf6 {[%emt 0:07:42]} Qxf6 {[%emt 0:00:00]} 17. f4 {[%emt 0:01:22]} exd4 {[%emt 0:00:00]} 18. e5 {[%emt 0:14:34]} Qd8 {[%emt 0:00:00]} 19. Rf3 {[%emt 0:09:16]} Qb6 {[%emt 0:00:00]} 20. Rg3 {[%emt 0:06:26]} Kh8 {[%emt 0:00:00]} 21. Qb3 {[%emt 0:04:34]} Re6 {[%emt 0:00:00]} 22. Kh1 {[%emt 0:16:33]} Nc5 {[%emt 0:00:00]} 23. Qd1 {[%emt 0:01:02]} Nxd3 {[%emt 0:00:00]} 24. Rxd3 {[%emt 0:01:24]} c5 {[%emt 0:00:00]} 25. Neg3 {[%emt 0:02:09]} Qc6 {[%emt 0:00:00]} 26. Qe2 {[%emt 0:00:57]} Rd8 {[%emt 0:00:00]} 27. Rg1 {[%emt 0:01:36]} g6 {[%emt 0:00:00]} 28. Ne3 {[%emt 0:03:21]} c4 {[%emt 0:00:00]} 29. Rdd1 {[%emt 0:00:58]} d3 {[%emt 0:00:00]} 30. Qg4 {[%emt 0:00:36]} Qd7 {[%emt 0:00:00]} 31. Rgf1 {[%emt 0:00:57]} h5 {[%emt 0:00:00]} 32. Qg5 {[%emt 0:00:06]} Qe7 {[%emt 0:00:15]} 33. Qxe7 {[%emt 0:00:32]} Rxe7 {[%emt 0:00:43]} 34. f5 {[%emt 0:01:18]} Rxe5 {[%emt 0:01:34]} 35. fxg6 {[%emt 0:00:22]} fxg6 {[%emt 0:01:16]} 36. Nc2 {[%emt 0:00:41]} Kg7 {[%emt 0:00:53]} 37. Ne1 {[%emt 0:01:16]} h4 {[%emt 0:00:30]} 0-1